Cogmind - Beta 13 @@@ ROGUE MODE // 2024.04.07 @ 03:39:07 Player: lrwhittaker Result: Destroyed by S-27 Virus with Autogun Performance ------------- Evolutions (3) 1500 Regions Visited (4) 800 Robots Destroyed (11) 55 Value Destroyed (272) 272 Prototype IDs (7) 140 Alien Tech Used (0) 0 Bonus (0) 0 TOTAL SCORE: 2767 Bonus ------- None Cogmind --------- Core Integrity 0/700 Matter 0/300 Energy 41/100 System Corruption 2% Temperature Cool (2) Movement Walking (130) Location -7/Factory Parts ------- > --- POWER (1) -------- (None) > --- PROPULSION (5) --- Titanium Leg > --- UTILITY (5) ------ Machine Analyzer Signal Interpreter > --- WEAPON (2) ------- Enhanced Autogun > --- INVENTORY (5) ---- Light Ion Engine Improved Medium Armor Plating Enhanced Autogun Rocket Array Peak State ------------ > --- POWER ------------ Light Ion Engine > --- PROPULSION ------- VTOL Module VTOL Module VTOL Module VTOL Module Improved VTOL Module > --- UTILITY ---------- Machine Analyzer Signal Interpreter Improved Targeting Computer Improved Light Armor Plating System Shield > --- WEAPON ----------- Enhanced Autogun Enhanced Autogun > --- INVENTORY -------- Light Ion Engine VTOL Module Transmission Jammer Enhanced Autogun Enhanced Autogun [Rating: 34] Favorites ----------- Power Light Ion Engine Engine Light Ion Engine Propulsion VTOL Module Leg Aluminum Leg Flight Unit VTOL Module Utility Signal Interpreter Device Sensor Array Storage Small Storage Unit Processor Signal Interpreter Hackware System Shield Protection Improved Propulsion Shielding Weapon Assault Rifle Ballistic Gun Assault Rifle Launcher Rocket Array Build | -11 -10 -9 -8 -7 ------- Run | Yrd Mat Mat Mat Fac Slots Evolved 6 | . . 2 2 2 Power . | . . . . . Propulsion 3 | . . 1 1 1 Utility 3 | . . 1 1 1 Weapon . | . . . . . Parts Attached 47 | 6 5 6 13 17 Power 4 | 1 . 1 1 1 Engine 4 | 1 . 1 1 1 Core . | . . . . . Reactor . | . . . . . Propulsion 17 | 2 2 2 6 5 Treads . | . . . . . Leg 3 | 2 . . . 1 Wheel . | . . . . . Hover . | . . . . . Flight 14 | . 2 2 6 4 Utility 13 | 1 2 1 5 4 Device 3 | . 1 . 2 . Storage 1 | 1 . . . . Processor 4 | . 1 1 2 . Hackware 1 | . . . 1 . Protection 4 | . . . . 4 Artifact . | . . . . . Weapon 13 | 2 1 2 1 7 Energy Gun . | . . . . . Energy Cannon . | . . . . . Ballistic Gun 10 | 2 1 2 1 4 Ballistic Cannon . | . . . . . Launcher 3 | . . . . 3 Special Weapon . | . . . . . Impact Weapon . | . . . . . Slashing Weapon . | . . . . . Piercing Weapon . | . . . . . Special Melee Weapon . | . . . . . Unidentified Prototypes 2 | . . . 1 1 Parts Lost 15 | . . 2 . 13 Power 2 | . . 1 . 1 Propulsion 6 | . . . . 6 Utility 5 | . . 1 . 4 Weapon 2 | . . . . 2 Highest Loss Streak 10 | . . 1 . 10 To Critical Strikes . | . . . . . Average Slot Usage (%) 86 | . 80 98 97 76 Engine 8 | . 14 11 9 5 Flight 31 | . 25 33 36 29 Device 4 | . 6 9 4 . Processor 20 | . 6 21 26 21 Hackware 2 | . . . 2 5 Protection 1 | . . . . 2 Ballistic Gun 16 | . 22 22 18 10 Naked Turns . | . . . . . Heaviest Build 13 | 13 13 9 9 12 Greatest Support 22 | 20 20 12 22 21 Greatest Overweight (x) 3 | . 3 . . 1 Average Overweight (x) . | . . . . . Largest Inventory Capacity 8 | 8 8 5 5 5 Average Capacity 5 | 7 5 5 5 5 Most Carried 5 | 1 4 5 5 5 Average Carried 3 | . 3 4 3 4 Final Capacity 8 | 8 5 5 5 5 Final Carried 5 | 1 4 5 5 4 Class Distribution -------------------- 90% | Sprinter 9% | Mutant Dominant Class ---------------- Sprinter | -10/Materials Sprinter | -9/Materials Sprinter | -8/Materials Sprinter | -7/Factory Resources | -11 -10 -9 -8 -7 ----------- Run | Yrd Mat Mat Mat Fac Matter Collected 512 | 163 60 67 201 21 Remotely . | . . . . . Salvage Created 337 | . 60 154 112 11 Parts 24 | . 4 12 7 1 Haulers Intercepted . | . . . . . Recyclers Shooed 1 | . . 1 . . Parts Field Recycled . | . . . . . Retrieved Matter . | . . . . . Parts Self-Destructed . | . . . . . Prevented . | . . . . . Kills | -11 -10 -9 -8 -7 ------- Run | Yrd Mat Mat Mat Fac Combat Hostiles Destroyed 8 | . 1 5 2 . Guns 8 | . 1 5 2 . Classes Destroyed 5 | . 2 2 1 . Operator 2 | . . 1 . 1 Watcher 1 | . 1 . . . Swarmer 3 | . . 3 . . Grunt 4 | . 1 2 1 . Sentry 1 | . . . 1 . Best Kill Streak 4 | . 1 4 1 1 Combat Bots Only 4 | . 1 4 1 . Max Kills in Single Turn 1 | . 1 1 1 1 Gunslinging . | . . . . . Exploded . | . . . . . Melee . | . . . . . Uniques/NPCs Destroyed . | . . . . . Combat | -11 -10 -9 -8 -7 -------- Run | Yrd Mat Mat Mat Fac Hostile Shots Fired 242 | . 3 48 21 170 Missed 113 | . . 25 12 76 Damage Taken 1971 | . 35 259 137 1540 Core 776 | . . 53 16 707 Absorbed by Shields 104 | . . . . 104 Redirected to Shielding 201 | . . . . 201 Regen/Repaired (Parts) 109 | . . . . 109 Core Remaining (%) 95 | 100 100 86 97 . Volleys Fired 39 | . 5 16 10 8 Largest 2 | . 2 2 2 2 Hottest 50 | . 40 43 48 50 Shots Fired 76 | . 10 32 20 14 Gun 76 | . 10 32 20 14 Cannon . | . . . . . Launcher . | . . . . . Special . | . . . . . Kinetic 76 | . 10 32 20 14 Thermal . | . . . . . Explosive . | . . . . . Electromagnetic . | . . . . . Robot Hit Streak 11 | . 7 11 4 8 Robot Miss Streak 4 | . 2 4 3 1 Penetration Max . | . . . . . Secondary Targets 2 | . . 2 . . Max Gunslinging Chain 1 | . . 1 . . Shots Hit Robots 49 | . 7 22 10 10 Core Hits 20 | . 4 9 5 2 Critical Kills . | . . . . . Critical Parts Destroyed 1 | . . 1 . . Critical Strikes 1 | . . 1 . . Destroy 1 | . . 1 . . Melee Attacks . | . . . . . Impact . | . . . . . Slashing . | . . . . . Piercing . | . . . . . Sneak Attacks . | . . . . . Combat Hostiles . | . . . . . Follow-up Attacks . | . . . . . Damage Inflicted 740 | . 69 270 142 259 Guns 639 | . 69 270 142 158 Cannons . | . . . . . Explosions . | . . . . . Melee . | . . . . . Ramming 101 | . . . . 101 Kinetic 639 | . 69 270 142 158 Thermal . | . . . . . Explosive . | . . . . . Electromagnetic . | . . . . . Impact . | . . . . . Slashing . | . . . . . Piercing . | . . . . . Highest Corruption 2 | . . . . 2 Average Corruption 2 | . . . . 2 Corruption Purged . | . . . . . Corruption Blocked . | . . . . . Effects 10 | . . . . 10 Message Errors 4 | . . . . 4 Matter Fused 3 | . . . . 3 Energy Discharges 1 | . . . . 1 Data Loss (minor) 1 | . . . . 1 Weapon Failures 1 | . . . . 1 Overload Shots . | . . . . . Overflow Damage . | . . . . . Projectiles . | . . . . . Explosions . | . . . . . Melee . | . . . . . Knockbacks . | . . . . . Impact . | . . . . . Kinetic . | . . . . . Secondary . | . . . . . Self-Inflicted Damage 49 | . . . . 49 Shots . | . . . . . Rammed 10 | . . . . 10 Targets Rammed 10 | . . . . 10 Kicked . | . . . . . Crushed . | . . . . . Highest Temperature 37 | . 10 9 12 37 Average Temperature 7 | . 5 3 4 8 Received Heat Transfer 892 | . 18 96 45 733 Siege Activations . | . . . . . Robots Corrupted . | . . . . . Combat Hostiles . | . . . . . Parts Fried . | . . . . . Impact Corruptions . | . . . . . Robots Melted . | . . . . . Combat Hostiles . | . . . . . Parts Melted . | . . . . . Heat Transferred . | . . . . . Parts Sabotaged . | . . . . . Parts Stolen . | . . . . . Parts Stripped . | . . . . . Power Chain Reactions . | . . . . . Alert | -11 -10 -9 -8 -7 ------- Run | Yrd Mat Mat Mat Fac Peak Influence 474 | . 111 381 297 474 Initial 156 | . . 46 156 135 Average 101 | . 39 129 195 78 Maximum Alert Level 2 | . . 1 1 2 Low Security (%) 85 | 100 100 82 61 90 Level 1 13 | . . 17 38 8 Level 2 . | . . . . 1 Level 3 . | . . . . . Level 4 . | . . . . . Level 5 . | . . . . . High Security . | . . . . . Max Security . | . . . . . Squads Dispatched 9 | . 1 4 1 3 Investigation 5 | . . 1 1 3 Extermination . | . . . . . Reinforcement 4 | . 1 3 . . Assault . | . . . . . Garrison . | . . . . . Intercept . | . . . . . Searches Triggered . | . . . . . Construction Impeded . | . . . . . Haulers Reinforced . | . . . . . Active Scanning Responses . | . . . . . Cargo Convoy Interrupts . | . . . . . Stealth | -11 -10 -9 -8 -7 --------- Run | Yrd Mat Mat Mat Fac Distress Signals 1 | . 1 . . . Communications Jammed . | . . . . . Distress Signals . | . . . . . Times Spotted 68 | . 4 21 8 35 Peak Tracking Total 14 | . 2 13 5 14 Tactical Retreats 11 | . 1 . 2 8 Traps | -11 -10 -9 -8 -7 ------- Run | Yrd Mat Mat Mat Fac Traps Triggered 7 | . . 1 . 6 Indirectly . | . . . . . Trap Hack Attempts . | . . . . . Triggered . | . . . . . Disarmed . | . . . . . Reprogrammed . | . . . . . Reused . | . . . . . Traps Extracted . | . . . . . Installed . | . . . . . Triggered 1 | . . . . 1 Machines | -11 -10 -9 -8 -7 ---------- Run | Yrd Mat Mat Mat Fac Machines Disabled . | . . . . . Max in Single Turn . | . . . . . Machines Repaired . | . . . . . Machines Dismantled . | . . . . . Machines Sabotaged . | . . . . . Overloaded Fab Kills . | . . . . . Hacking | -11 -10 -9 -8 -7 --------- Run | Yrd Mat Mat Mat Fac Machines Accessed 13 | . 3 1 2 7 Terminals 8 | . 2 1 1 4 Fabricators 2 | . . . . 2 Repair Stations 1 | . . . . 1 Recycling Units 1 | . 1 . . . Scanalyzers 1 | . . . 1 . Garrison Access . | . . . . . Total Hacks 35 | . 6 3 6 20 Successful 18 | . 2 . 3 13 Failed 17 | . 4 3 3 7 Catastrophic 4 | . . 1 . 3 Database Lockouts . | . . . . . Manual 8 | . 1 2 2 3 Terminals 19 | . 4 3 3 9 Fabricators 3 | . . . . 3 Repair Stations 8 | . . . . 8 Recycling Units 2 | . 2 . . . Scanalyzers 3 | . . . 3 . Garrison Access . | . . . . . Terminal Hacks 7 | . 2 . 1 4 Record 1 | . . . . 1 Prototype ID Bank 2 | . . . 1 1 Alert Level 1 | . . . . 1 Unreport Threat 1 | . . . . 1 Recall Investigation 1 | . 1 . . . Registered Components 1 | . 1 . . . Fabricator Hacks 3 | . . . . 3 Load Schematic 1 | . . . . 1 Build 2 | . . . . 2 Repair Station Hacks 6 | . . . . 6 Scan Component 3 | . . . . 3 Repair 3 | . . . . 3 Recycling Unit Hacks . | . . . . . Scanalyzer 2 | . . . 2 . Insert Component 1 | . . . 1 . Analyze 1 | . . . 1 . Garrison Access Hacks . | . . . . . Unauthorized Hacks . | . . . . . Terminals . | . . . . . Fabricators . | . . . . . Repair Stations . | . . . . . Recycling Units . | . . . . . Scanalyzers . | . . . . . Garrison Access . | . . . . . Data Cores Recovered 1 | . . . . 1 Used 1 | . . . . 1 Hacking Detections 13 | . 3 1 1 8 Full Trace Events 4 | . . . 1 3 Feedback Events . | . . . . . Feedback Blocked . | . . . . . Robot Schematics Acquired . | . . . . . Robots Built 1 | . . . . 1 Authchips . | . . . . . Time 27 | . . . . 27 Total Robot Build Rating 1 | . . . . 1 Part Schematics Acquired 1 | . . . 1 . Parts Built 1 | . . . . 1 Authchips . | . . . . . Time 58 | . . . . 58 Total Part Build Rating 3 | . . . . 3 Parts Repaired 3 | . . . . 3 Time 140 | . . . . 140 Parts Recycled . | . . . . . Recycled Matter . | . . . . . Retrieved Matter . | . . . . . Retrieved Components . | . . . . . Parts Scanalyzed 1 | . . . 1 . Part Schematics Acquired 1 | . . . 1 . Parts Damaged 1 | . . . 1 . Bothacking | -11 -10 -9 -8 -7 ------------ Run | Yrd Mat Mat Mat Fac Used RIF Installer . | . . . . . Robots Hacked . | . . . . . Non-combat . | . . . . . Combat . | . . . . . Robot Hacks Applied . | . . . . . Relay Couplers Released . | . . . . . Fabnet Peak Effective % . | . . . . . Robots Rewired . | . . . . . Allies Hacked . | . . . . . Hacks Repelled . | . . . . . Allies | -11 -10 -9 -8 -7 -------- Run | Yrd Mat Mat Mat Fac Total Allies 1 | . . . . 1 Largest Group 1 | . . . . 1 Highest-Rated Group 6 | . . . . 6 Highest-Rated Ally 6 | . . . . 6 Total Orders . | . . . . . Ally Attacks . | . . . . . Total Damage . | . . . . . Kills . | . . . . . Allies Corrupted . | . . . . . Allies Melted . | . . . . . Intel | -11 -10 -9 -8 -7 ------- Run | Yrd Mat Mat Mat Fac Robot Analysis Total . | . . . . . Derelict Logs Recovered . | . . . . . Drone Launches . | . . . . . Drone Recoveries . | . . . . . Exploration | -11 -10 -9 -8 -7 ------------- Run | Yrd Mat Mat Mat Fac Turns Passed 1287 | 64 105 391 163 564 Spaces Moved 1803 | 48 185 336 327 907 Core 52 | 4 . . . 48 Treads . | . . . . . Legs 50 | 44 5 . . 1 Wheels . | . . . . . Hover . | . . . . . Flight 1701 | . 180 336 327 858 Fastest Speed 23 | 50 32 29 26 23 Average Speed 30 | 114 35 29 26 27 Slowest Speed 275 | 120 275 29 26 130 Overloaded Moves . | . . . . . Propulsion Burnouts . | . . . . . Robots Hopped 16 | . 2 5 2 7 Cave-ins Triggered . | . . . . . Exploration Rate (%) 26 | 3 37 45 28 19 Regions Visited 4 Branch Regions . Pre-discovered Areas . | . . . . . Known Exits Taken 3 | . 1 1 1 . Unknown Exits Taken 1 | 1 . . . . Scrap Searched . | . . . . . Spaces Dug . | . . . . . Terrain Destroyed . | . . . . . Melee . | . . . . . Projectile . | . . . . . AOE . | . . . . . Terrain Rammed . | . . . . . Walls Destroyed . | . . . . . Machines Disabled . | . . . . . Actions | -11 -10 -9 -8 -7 --------- Run | Yrd Mat Mat Mat Fac Total 2445 | 54 212 592 380 1207 Wait 506 | . 12 234 24 236 Move 1769 | 47 180 325 322 895 Hop 14 | . 2 5 2 5 Pick Up 16 | 1 3 3 4 5 Fast Attach 24 | 6 4 2 4 8 Attach 13 | . 1 2 4 6 Detach 6 | . 1 . 1 4 Swap 10 | . . 2 5 3 Drop 18 | . 4 3 4 7 Fire 39 | . 5 16 10 8 Melee . | . . . . . Ram 10 | . . . . 10 Kick . | . . . . . Crush . | . . . . . Escape Stasis 20 | . . . . 20 Rewire . | . . . . . Trap . | . . . . . Miscellaneous . | . . . . . Route ------- -11/Scrapyard -10/Materials -9/Materials -8/Materials (discovered 2 exits: *Fac / *Sto) -7/Factory History --------- Turn | Location | Event 5 | -11/Scrapyard | Discovered new exit (range 15) 65 | -11/Scrapyard | Entered Materials 159 | -10/Materials | Discovered new exit (range 16) 164 | -10/Materials | Identified exit to Materials 170 | -10/Materials | Entered another Materials area 170 | -9/Materials | Evolved 2 slots: Propulsion x1, Utility x1 374 | -9/Materials | Build established: Sprinter 556 | -9/Materials | Discovered new exit (range 16) 560 | -9/Materials | Identified exit to Materials 561 | -9/Materials | Entered another Materials area 561 | -8/Materials | Evolved 2 slots: Propulsion x1, Utility x1 643 | -8/Materials | Discovered new exit (range 5) 644 | -8/Materials | Identified exit to Storage 712 | -8/Materials | Discovered new exit (range 9) 714 | -8/Materials | Identified exit to Factory 724 | -8/Materials | Entered Factory 724 | -7/Factory | Evolved 2 slots: Propulsion x1, Utility x1 826 | -7/Factory | Repaired Broken Imp. VTOL Module 860 | -7/Factory | Repaired VTOL Module 893 | -7/Factory | Repaired Hvy. Assault Rifle 1091 | -7/Factory | Fabricated Imp. VTOL Module (x1) 1207 | -7/Factory | Core integrity fell below 50% 1218 | -7/Factory | Lost 10 parts (1p3n4u2w) 1237 | -7/Factory | Found Prototype Launcher 1237 | -7/Factory | Identified Rocket Array 1258 | -7/Factory | Core integrity fell below 20% 1260 | -7/Factory | Fabricated K-01 Serf? 1288 | -7/Factory | Destroyed by S-27 Virus with Autogun Last Messages --------------- 01231_ Fabricator x1 01233_ Connecting with Fabricator... >>Build Building K-01 Serf... ETC: 27 01234_ Acquired Imp. Medium Armor Plating. 01237_ Acquired Prototype Launcher. 01237_ Identified Rocket Array. 01248_ &VF/5 59WSNLPXPENHLH,HLODNK4CIKI 01255_ Imp. VTOL Module destroyed. 01257_ Triggered Heavy Explosive Trap. 01257_ An explosion rips through the floor. 01257_ Imp. VTOL Module destroyed. 01257_ Pressure Siphon disabled. 01257_ S-27 Virus destroyed. 01258_ K-01 Serf cleans the Pressure Siphon. [Achievement: My Command Is Your Wish] 01260_ >> FABRICATOR: Completed K-01 Serf? 01271_ K-01 Serf collects debris. 01283_ Acquired Titanium Leg. Map ----- +----------------------------------------------------+ | | | | | | | | | | | | | | | | | | | | | | | | | | | | | | | | | | | ?????????????????????????????????????????????????? | | ?????????????????????????????????????????????????? | | ##########???????????????????????????????????????? | | #?#################?????????????????????? | | #?# ??????????????? | | #?# ##+########?????????????????????? | | ### # s #?????????????????????? | | # s #?????????????????????? | | # @ #?????????????????????? | | """ """" """" # #?????????????????????? | | """ """" """" #+############????????????????????? | | """ """" """" # #????????????????????? | | # #????????????????????? | | """ """" """" # #????????????????????? | | """ """" """" !# #????????????????????? | | """ """" """" # #????????????????????? | | # #????????????????????? | | """ """" """" + #????????????????????? | | """ """" """" # #????????????????????? | | """ """" """" # #????????????????????? | | ? ???? ??? # #????????????????????? | | ? ???? ??? # #????????????????????? | | ##?#???? ??? # #????????????????????? | | ???????? ??? ##############????????????????????? | | ?????????????????????????????????????????????????? | | ?????????????????????????????????????????????????? | | ?????????????????????????????????????????????????? | | ?????????????????????????????????????????????????? | | ?????????????????????????????????????????????????? | | ?????????????????????????????????????????????????? | | ?????????????????????????????????????????????????? | | ?????????????????????????????????????????????????? | | ?????????????????????????????????????????????????? | +----------------------------------------------------+ Best States ------------- Heat Dissipation 45 Energy Generation 10 Energy Capacity 250 Matter Stores 203 Matter Capacity 300 Sight Range 20 Robot Scan Range 14 Terrain Scan Density 10 Additional Mass Support 6 Armor Coverage 150 Propulsion Shielding 66 Evasion (%) 65 Targeting Accuracy 6 Defensive Hacking 10 Item Schematics ----------------- Imp. VTOL Module | -8/Materials | Scanalyzed Robot Schematics ------------------ None Fabricated ------------ Imp. VTOL Module | x1 | -7/Factory K-01 Serf | x1 | -7/Factory | Preloaded Alien Tech Used ----------------- None Achievements -------------- Can't Catch Me My Command Is Your Wish Party Time Challenges ------------ None Game ------ Seed ImprovedPhasingAxe Manual? 0 Play Time 00:50:14 Cumulative 11.4 hours Start 2024.04.07 @ 02:47:19 End 2024.04.07 @ 03:39:07 Sessions 1 Manual Loads 0 Difficulty Rogue Special Mode None Game No. 9 Rogue 9 Adventurer 0 Explorer 0 Win Type - Total 0 Types 0/0/0/0/0/0/0/0/0 Lore% 7 Gallery% 15 Achievement% 19 Wizard Run 0 Options --------- Layout 0 ASCII 0 Keyboard 0 Movement Mouse Keybinds 0 Fullscreen 1 Font 18/SmallcapsGlow Map View 76x50 Zoom Use 0% Tactical HUD 1 Map Filters NONE Filters NONE Steam 1 RUN: 37a1f71b-74cc-4e2f-a3f6-ff316232aff7